bitfinex/quotes_BTCUSD_20251113
["timestamp","ask_amount","ask_price","bid_price","bid_amount"]
[1763032976730,0.51735939,102940.0,102930.0,5.05877085]
[1763032977612,0.51735939,102940.0,102930.0,5.07877085]
[1763032978049,0.51735939,102940.0,102930.0,5.05877085]
[1763032978494,0.51735939,102940.0,102930.0,5.07877085]
[1763032980057,0.51735939,102940.0,102930.0,5.25307766]
[1763032980256,0.51735939,102940.0,102930.0,5.27307766]
[1763032980811,0.51735939,102940.0,102930.0,5.32147766]
[1763032980812,0.27271146,102940.0,102930.0,5.32147766]
[1763032981034,0.24354647,102940.0,102930.0,5.32147766]
[1763032981928,0.24254647,102940.0,102930.0,5.32147766]
[1763032982244,0.24254647,102940.0,102930.0,5.32347766]
[1763032985564,0.24164085,102940.0,102930.0,5.32347766]
[1763032986348,0.24164085,102940.0,102930.0,5.10917085]
[1763032986556,0.44745878,102940.0,102930.0,5.08426085]
[1763032986759,0.44745878,102940.0,102930.0,5.10426085]
[1763032986963,0.24164085,102940.0,102930.0,5.29856766]
[1763032987208,0.24164085,102940.0,102930.0,5.32121766]
[1763032988939,0.43592878,102940.0,102930.0,5.32121766]
[1763032989755,0.43592878,102940.0,102930.0,5.12691085]
[1763032990237,0.43592878,102940.0,102930.0,5.10426085]
[1763032990456,0.43592878,102940.0,102930.0,5.29856766]
[1763032991158,0.43592878,102940.0,102930.0,5.32211766]
[1763032991926,0.24164085,102940.0,102930.0,5.32211766]
[1763032992137,0.43592878,102940.0,102930.0,5.32211766]
[1763032992655,0.24164085,102940.0,102930.0,5.32211766]
[1763032992858,0.43592878,102940.0,102930.0,5.32211766]
[1763032993176,0.24164085,102940.0,102930.0,5.32211766]
[1763032996858,0.48781878,102940.0,102930.0,5.25503766]
[1763032997011,0.48781878,102940.0,102930.0,5.32199766]
[1763032997012,0.24164085,102940.0,102930.0,5.32199766]
[1763032997220,0.24164085,102940.0,102930.0,5.30199766]
[1763032997394,0.24164085,102940.0,102930.0,5.32199766]
[1763032997593,0.29499488,102940.0,102930.0,5.32199766]
[1763032998014,0.24164085,102940.0,102930.0,5.32199766]
[1763033003314,0.19426989,102950.0,102930.0,5.30199766]
[1763033003484,0.19426989,102950.0,102940.0,0.23769793]
[1763033003898,0.20571989,102950.0,102940.0,0.04341]
[1763033004461,0.01145,102950.0,102940.0,0.23769793]
[1763033004668,0.19426906,102950.0,102940.0,0.26124793]
[1763033005785,0.19426906,102950.0,102940.0,0.23769793]
[1763033005992,0.20571906,102950.0,102940.0,0.23769793]
[1763033006229,0.20571906,102950.0,102940.0,0.04341]
[1763033006654,0.22951906,102950.0,102940.0,0.04341]
[1763033007950,0.24615906,102950.0,102940.0,0.02838]
[1763033009211,0.19426906,102950.0,102940.0,0.24124793]
[1763033009774,0.19426906,102950.0,102940.0,0.26124793]
[1763033010662,0.20642906,102950.0,102940.0,0.04341]
[1763033011525,0.20642906,102950.0,102940.0,0.23769793]
[1763033011731,0.01216,102950.0,102940.0,0.23769793]
[1763033012254,0.01216,102950.0,102940.0,0.26208793]
[1763033014739,0.47575832,102960.0,102950.0,0.21426906]
[1763033014970,0.47575832,102960.0,102950.0,0.27996906]
[1763033015197,0.51691832,102960.0,102950.0,0.07054]
[1763033015524,0.48776331,102960.0,102950.0,0.06216]
[1763033015729,0.48776331,102960.0,102950.0,0.04216]
[1763033016472,0.48776331,102960.0,102950.0,0.06216]
[1763033016685,0.48876331,102960.0,102950.0,0.06216]
[1763033018388,0.48876331,102960.0,102950.0,0.04216]
[1763033018595,0.48876331,102960.0,102950.0,0.06216]
[1763033018828,0.54211734,102960.0,102950.0,0.06216]
[1763033020590,0.48876331,102960.0,102950.0,0.06216]
[1763033023832,0.48876331,102960.0,102950.0,0.04216]
[1763033024249,0.48876331,102960.0,102950.0,0.06216]
[1763033024665,0.48876331,102960.0,102950.0,0.04216]
[1763033024876,0.48876331,102960.0,102950.0,0.06216]
[1763033027773,0.48876331,102960.0,102950.0,0.25642906]
[1763033029155,0.46393331,102960.0,102950.0,0.07054]
[1763033029615,0.46393331,102960.0,102950.0,0.26480906]
[1763033029823,0.46383331,102960.0,102950.0,0.26480906]
[1763033031890,0.46383331,102960.0,102950.0,0.07054]
[1763033032349,0.46383331,102960.0,102950.0,0.26480906]
[1763033033434,0.44750331,102960.0,102950.0,0.25996906]
[1763033033636,0.43680331,102960.0,102950.0,0.28435906]
[1763033033843,0.43680331,102960.0,102950.0,0.11009]
[1763033034044,0.43680331,102960.0,102950.0,0.28435906]
[1763033034250,0.43680331,102960.0,102950.0,0.30435906]
[1763033034898,0.43680331,102960.0,102950.0,0.27996906]
[1763033035355,0.43580331,102960.0,102950.0,0.27996906]
[1763033036191,0.43580331,102960.0,102950.0,0.30435906]
[1763033037368,0.24154085,102960.0,102950.0,0.30435906]
[1763033037570,0.43579104,102960.0,102950.0,0.30435906]
[1763033040278,0.24154085,102960.0,102950.0,0.30435906]
[1763033040815,0.43579104,102960.0,102950.0,0.30435906]
[1763033040969,0.24154085,102960.0,102950.0,0.30435906]
[1763033041664,0.24154085,102960.0,102950.0,0.27996906]
[1763033041865,0.24154085,102960.0,102950.0,0.30280906]
[1763033042266,0.43579104,102960.0,102950.0,0.30280906]
[1763033042686,0.24154085,102960.0,102950.0,0.30280906]
[1763033042884,0.43579104,102960.0,102950.0,0.27996906]
[1763033043512,0.43579104,102960.0,102950.0,0.30280906]
[1763033043954,0.24154085,102960.0,102950.0,0.30280906]
[1763033044738,0.43579104,102960.0,102950.0,0.30280906]
[1763033044944,0.24154085,102960.0,102950.0,0.30280906]
[1763033046860,0.43579104,102960.0,102950.0,0.30280906]
[1763033047059,0.24154085,102960.0,102950.0,0.30280906]
[1763033047850,0.48758104,102960.0,102950.0,0.07054]
[1763033048059,0.48758104,102960.0,102950.0,0.06216]
[1763033048462,0.48758104,102960.0,102950.0,0.25642906]
[1763033048864,0.29333085,102960.0,102950.0,0.25642906]
[1763033049060,0.48758104,102960.0,102950.0,0.26480906]
[1763033049727,0.48758104,102960.0,102950.0,0.21426906]
[1763033049929,0.48758104,102960.0,102950.0,0.25638906]
[1763033051455,0.48758104,102960.0,102950.0,0.06212]
[1763033051824,0.48758104,102960.0,102950.0,0.25638906]
[1763033052481,0.48758104,102960.0,102950.0,0.06212]
[1763033053457,0.48758104,102960.0,102950.0,0.25638906]
[1763033053861,0.48758104,102960.0,102950.0,0.06212]
[1763033054362,0.19426906,102950.0,102940.0,0.21428732]
[1763033054680,0.24605906,102950.0,102940.0,0.25640732]
[1763033055108,0.22304906,102950.0,102940.0,0.26478732]
[1763033055463,0.01228,102950.0,102940.0,0.30489732]
[1763033055854,0.01228,102950.0,102940.0,0.30589732]
[1763033056060,0.01228,102950.0,102940.0,0.30689732]
[1763033056695,0.20654906,102950.0,102940.0,0.30689732]
[1763033056919,0.20654906,102950.0,102940.0,0.28202732]
[1763033057879,0.20654906,102950.0,102940.0,0.08774]
[1763033058092,0.24605906,102950.0,102940.0,0.28202793]
[1763033058952,0.24605906,102950.0,102940.0,0.06412]
[1763033060153,0.24605906,102950.0,102940.0,0.04412]
[1763033060365,0.24605906,102950.0,102940.0,0.21628793]
[1763033060623,0.24605906,102950.0,102940.0,0.25840793]
[1763033061252,0.24605906,102950.0,102940.0,0.06412]
[1763033061471,0.24605906,102950.0,102940.0,0.25840793]
[1763033063135,0.24605906,102950.0,102940.0,0.26678793]
[1763033063962,0.24605906,102950.0,102940.0,0.0725]
[1763033064939,0.24605906,102950.0,102940.0,0.06412]
[1763033069066,0.24605906,102950.0,102940.0,0.06312]
[1763033070558,0.24605906,102950.0,102940.0,0.06212]
[1763033072100,0.24605906,102950.0,102940.0,0.04212]
[1763033072327,0.24605906,102950.0,102940.0,0.06212]
[1763033072553,0.24605906,102950.0,102940.0,0.04212]
[1763033072756,0.24605906,102950.0,102940.0,0.06212]
[1763033072960,0.24605906,102950.0,102940.0,0.04212]
[1763033073176,0.24605906,102950.0,102940.0,0.06212]
[1763033073597,0.24605906,102950.0,102940.0,0.04212]
[1763033073827,0.24705906,102950.0,102940.0,0.06212]
[1763033077868,0.20754906,102950.0,102940.0,0.06664]
[1763033078062,0.001,102950.0,102940.0,0.30381793]
[1763033080260,0.47718455,102960.0,102950.0,0.21426906]
[1763033080426,0.50025455,102960.0,102950.0,0.22264906]
[1763033080682,0.51642455,102960.0,102950.0,0.02838]
[1763033081005,0.51642455,102960.0,102950.0,0.22264906]
[1763033081626,0.51742455,102960.0,102950.0,0.22264906]
[1763033081833,0.51742455,102960.0,102950.0,0.02838]
[1763033082034,0.51742455,102960.0,102950.0,0.20264906]
[1763033082439,0.51742455,102960.0,102950.0,0.22264906]
[1763033083202,0.51742455,102960.0,102950.0,0.20264906]
[1763033083407,0.51742455,102960.0,102950.0,0.22264906]
[1763033084421,0.51642455,102960.0,102950.0,0.22264906]
[1763033085502,0.47718455,102960.0,102950.0,0.26167906]
[1763033085701,0.47718455,102960.0,102950.0,0.23878906]
[1763033085908,0.51642455,102960.0,102950.0,0.22264906]
[1763033087483,0.51642455,102960.0,102950.0,0.20264906]
[1763033087687,0.51642455,102960.0,102950.0,0.22264906]
[1763033088787,0.49335455,102960.0,102950.0,0.22264906]
[1763033092512,0.29910436,102960.0,102950.0,0.22264906]
[1763033092941,0.49335455,102960.0,102950.0,0.22264906]
[1763033093121,0.27069436,102960.0,102950.0,0.23878906]
[1763033093352,0.24154085,102960.0,102950.0,0.26167906]
[1763033095009,0.43579104,102960.0,102950.0,0.26167906]
[1763033095209,0.24154085,102960.0,102950.0,0.26167906]
[1763033099256,0.43579104,102960.0,102950.0,0.26167906]
[1763033099634,0.24154085,102960.0,102950.0,0.26167906]
[1763033100772,0.43579104,102960.0,102950.0,0.26167906]
[1763033100948,0.24154085,102960.0,102950.0,0.26167906]
[1763033101124,0.43579104,102960.0,102950.0,0.26167906]
[1763033101351,0.24154085,102960.0,102950.0,0.26167906]
[1763033101554,0.43579104,102960.0,102950.0,0.26167906]
[1763033102104,0.43579104,102960.0,102950.0,0.23878906]
[1763033102634,0.24154085,102960.0,102950.0,0.26272906]
[1763033104361,0.43579104,102960.0,102950.0,0.26272906]
[1763033109612,0.4308328,102960.0,102950.0,0.26272906]
[1763033110045,0.23658261,102960.0,102950.0,0.26272906]
[1763033115855,0.22294656,102960.0,102950.0,0.26272906]
[1763033120620,0.19423193,102970.0,102960.0,0.21425019]
[1763033120824,0.19423193,102970.0,102960.0,0.30270019]
[1763033122289,0.19523193,102970.0,102960.0,0.30270019]
[1763033125216,0.24475193,102970.0,102960.0,0.04841]
[1763033126004,0.24475193,102970.0,102960.0,0.06841]
[1763033127175,0.24475193,102970.0,102960.0,0.26266019]
[1763033127406,0.22201193,102970.0,102960.0,0.26266019]
[1763033127960,0.20692193,102970.0,102960.0,0.30270019]
[1763033128387,0.20692193,102970.0,102960.0,0.26058019]
[1763033128600,0.20692193,102970.0,102960.0,0.30270019]
[1763033128787,0.20692193,102970.0,102960.0,0.27914019]
[1763033130833,0.20692193,102970.0,102960.0,0.30386019]
[1763033131067,0.20692132,102970.0,102960.0,0.30386019]
[1763033131707,0.20692132,102970.0,102960.0,0.27914019]
[1763033132253,0.24568132,102970.0,102960.0,0.06841]
[1763033132456,0.24568132,102970.0,102960.0,0.26266019]
[1763033132666,0.25205129,102970.0,102960.0,0.26266019]
[1763033132852,0.22290132,102970.0,102960.0,0.26266019]
[1763033136436,0.22290132,102970.0,102960.0,0.04841]
[1763033136639,0.24568132,102970.0,102960.0,0.06841]
[1763033137657,0.22290132,102970.0,102960.0,0.26266019]
[1763033139336,0.25205129,102970.0,102960.0,0.26266019]
[1763033140171,0.25205129,102970.0,102960.0,0.06841]
[1763033140391,0.27483129,102970.0,102960.0,0.06841]
[1763033141600,0.27483129,102970.0,102960.0,0.06212]
[1763033141888,0.27483129,102970.0,102960.0,0.02]
[1763033142198,0.27483129,102970.0,102960.0,0.06212]
[1763033148327,0.27483129,102970.0,102960.0,0.02]
[1763033148535,0.27483129,102970.0,102960.0,0.06212]
[1763033150647,0.19426906,102950.0,102940.0,0.26625464]
[1763033150861,0.19426906,102950.0,102940.0,0.32837464]
[1763033151075,0.19426906,102950.0,102940.0,0.34411464]
[1763033151932,0.19426906,102950.0,102940.0,0.34511464]
[1763033152569,0.22175906,102950.0,102940.0,0.02938]
[1763033152779,0.24453906,102950.0,102940.0,0.0715]
[1763033153170,0.05027,102950.0,102940.0,0.26678793]
[1763033153385,0.01151,102950.0,102940.0,0.30724793]
[1763033153598,0.20577906,102950.0,102940.0,0.30724793]
[1763033153805,0.19426906,102950.0,102940.0,0.30724793]
[1763033154373,0.19426906,102950.0,102940.0,0.28724793]
[1763033154581,0.19426906,102950.0,102940.0,0.30724793]
[1763033155270,0.2576937,102960.0,102950.0,0.02]
[1763033155705,0.2736737,102960.0,102950.0,0.21426906]
[1763033160689,0.2736737,102960.0,102950.0,0.22264906]
[1763033161145,0.2736737,102960.0,102950.0,0.02838]
[1763033161366,0.07942351,102960.0,102950.0,0.22264906]
[1763033161578,0.2736737,102960.0,102950.0,0.22264906]
[1763033162434,0.2736737,102960.0,102950.0,0.02838]
[1763033162688,0.19426906,102950.0,102940.0,0.28950793]
[1763033163926,0.2576937,102960.0,102940.0,0.28594793]
[1763033164182,0.2576937,102960.0,102950.0,0.22264906]
[1763033164848,0.2736537,102960.0,102950.0,0.22264906]
[1763033165714,0.2736537,102960.0,102950.0,0.02838]
[1763033165898,0.2736537,102960.0,102950.0,0.22264906]
[1763033166538,0.2736537,102960.0,102950.0,0.02838]
[1763033167000,0.2736537,102960.0,102950.0,0.22264906]
[1763033167520,0.2736537,102960.0,102950.0,0.02838]
[1763033168321,0.2736537,102960.0,102950.0,0.22264906]
[1763033168522,0.2508737,102960.0,102950.0,0.23825906]
[1763033168725,0.2349137,102960.0,102950.0,0.26159906]
[1763033169748,0.2349137,102960.0,102950.0,0.23825906]
[1763033170849,0.2349137,102960.0,102950.0,0.26159906]
[1763033171913,0.2234037,102960.0,102950.0,0.26159906]
[1763033174252,0.02915351,102960.0,102950.0,0.26159906]
[1763033174462,0.2234037,102960.0,102950.0,0.26159906]
[1763033174750,0.2234037,102960.0,102950.0,0.06733]
[1763033174928,0.2234037,102960.0,102950.0,0.26159906]
[1763033175552,0.2357637,102960.0,102950.0,0.04399]
[1763033175746,0.19426906,102950.0,102940.0,0.28812793]
[1763033176279,0.19426906,102950.0,102940.0,0.30373793]
[1763033176708,0.19426906,102950.0,102940.0,0.10945]
[1763033176916,0.19426906,102950.0,102940.0,0.11045]
[1763033177101,0.19426906,102950.0,102940.0,0.08711]
[1763033177310,0.20662906,102950.0,102940.0,0.08711]
[1763033177666,0.22258906,102950.0,102940.0,0.02938]
[1763033177876,0.24694906,102950.0,102940.0,0.001]
[1763033178083,0.27610668,102950.0,102940.0,0.04408]
[1763033178487,0.27610668,102950.0,102940.0,0.04308]
[1763033179673,0.27610668,102950.0,102940.0,0.04208]
[1763033180141,0.27710668,102950.0,102940.0,0.04208]
[1763033183391,0.19428793,102940.0,102930.0,5.08672548]
[1763033183615,0.24696793,102940.0,102930.0,5.08672548]
[1763033184058,0.27612713,102940.0,102930.0,5.10672548]
[1763033184260,0.27612713,102940.0,102930.0,5.08672548]
[1763033184487,0.27612713,102940.0,102930.0,5.10672548]
[1763033184915,0.27612713,102940.0,102930.0,5.08672548]
[1763033187155,0.27612713,102940.0,102930.0,5.10672548]
[1763033187305,0.27612713,102940.0,102930.0,5.08672548]
[1763033187505,0.27612713,102940.0,102930.0,5.10672548]
[1763033187722,0.25176713,102940.0,102930.0,5.13071548]
[1763033187938,0.22344713,102940.0,102930.0,5.15405548]
[1763033188664,0.22344713,102940.0,102930.0,5.34836229]
[1763033190433,0.22442508,102940.0,102930.0,5.34836229]
[1763033190849,0.22442508,102940.0,102930.0,5.15405548]
[1763033193862,0.22442508,102940.0,102930.0,5.13071548]
[1763033194966,0.22442508,102940.0,102930.0,5.11071548]
[1763033195176,0.27641508,102940.0,102930.0,5.08672548]
[1763033195605,0.27641508,102940.0,102930.0,5.10672548]
[1763033196054,0.27641508,102940.0,102930.0,5.08672548]
[1763033196269,0.27641508,102940.0,102930.0,5.10672548]
[1763033196484,0.27641508,102940.0,102930.0,5.08672548]
[1763033197379,0.27641508,102940.0,102930.0,5.10672548]
[1763033198635,0.27641508,102940.0,102930.0,5.08672548]
[1763033199092,0.27641508,102940.0,102930.0,5.10672548]
[1763033199306,0.27641508,102940.0,102930.0,5.08672548]
[1763033199749,0.27641508,102940.0,102930.0,5.10672548]
[1763033199960,0.27641508,102940.0,102930.0,5.08672548]
[1763033201862,0.27641508,102940.0,102930.0,5.10672548]
[1763033202705,0.27641508,102940.0,102930.0,5.08672548]
[1763033202932,0.27641508,102940.0,102930.0,5.05875064]
[1763033203979,0.27641508,102940.0,102930.0,5.07875064]
[1763033204194,0.27641508,102940.0,102930.0,5.05875064]
[1763033204617,0.64283382,102940.0,102930.0,5.01667064]
[1763033204845,0.66100774,102940.0,102930.0,5.01667064]
[1763033205892,0.66300774,102940.0,102930.0,5.01667064]
[1763033213172,0.64483382,102940.0,102930.0,5.01667064]
[1763033214037,0.66299894,102940.0,102930.0,5.01667064]
[1763033214251,0.70507894,102940.0,102930.0,5.01667064]
[1763033214475,0.66299894,102940.0,102930.0,5.01667064]
[1763033214680,0.70507894,102940.0,102930.0,5.01667064]
[1763033215175,0.68691382,102940.0,102930.0,5.01667064]
[1763033217254,0.70507487,102940.0,102930.0,5.01667064]
[1763033223456,0.66299487,102940.0,102930.0,5.01667064]
[1763033223680,0.60141508,102940.0,102930.0,5.01667064]
[1763033223859,0.27841508,102940.0,102930.0,5.07875064]
[1763033224706,0.27641508,102940.0,102930.0,5.05875064]
[1763033224913,0.27741508,102940.0,102930.0,5.05875064]
[1763033225185,0.27741508,102940.0,102930.0,5.07875064]
[1763033225418,0.27741508,102940.0,102930.0,5.05875064]
[1763033225830,0.27741508,102940.0,102930.0,5.07875064]
[1763033226482,0.27741508,102940.0,102930.0,5.01667064]
[1763033226664,0.27741508,102940.0,102930.0,5.07875064]
[1763033226931,0.27741508,102940.0,102930.0,5.05875064]
[1763033228322,0.27741508,102940.0,102930.0,5.01667064]
[1763033228323,0.60041508,102940.0,102930.0,5.01667064]
[1763033229338,0.64383382,102940.0,102930.0,5.01667064]
[1763033229538,0.66200388,102940.0,102930.0,5.01667064]
[1763033231178,0.66300388,102940.0,102930.0,5.01667064]
[1763033235787,0.70508388,102940.0,102930.0,5.01667064]
[1763033243095,0.66300388,102940.0,102930.0,5.01667064]
[1763033243318,0.70509926,102940.0,102930.0,5.01667064]
[1763033244102,0.75845329,102940.0,102930.0,5.01667064]
[1763033245164,0.71637329,102940.0,102930.0,5.01667064]
[1763033245365,0.75845329,102940.0,102930.0,5.01667064]
[1763033245571,0.75845329,102940.0,102930.0,5.03667064]
[1763033246393,0.75845329,102940.0,102930.0,5.01667064]
[1763033246599,0.71419122,102940.0,102930.0,5.01667064]
[1763033252183,0.73513425,102940.0,102930.0,4.56808016]
[1763033252393,0.71419122,102940.0,102930.0,4.45387762]
[1763033253746,0.72419121,102940.0,102930.0,3.85285721]
[1763033253967,0.7451308,102940.0,102930.0,3.01844999]
[1763033254185,0.7451308,102940.0,102930.0,2.74227722]
[1763033254409,0.75513079,102940.0,102930.0,2.56534016]
[1763033254631,0.75513079,102940.0,102930.0,2.48171952]
[1763033255361,0.75513079,102940.0,102930.0,1.85432459]
[1763033255762,0.75513079,102940.0,102930.0,1.46209706]
[1763033255938,0.75513079,102940.0,102930.0,1.19702668]
[1763033259391,0.71305079,102940.0,102930.0,1.19702668]
[1763033259658,0.75513079,102940.0,102930.0,1.19702668]
[1763033260258,0.7451308,102940.0,102930.0,1.19702668]
[1763033260466,0.75513079,102940.0,102930.0,1.19702668]
[1763033261484,0.71305079,102940.0,102930.0,1.19702668]
[1763033261688,0.75513079,102940.0,102930.0,1.19702668]
[1763033263489,0.75513079,102940.0,102930.0,0.52091668]
[1763033263935,0.71305079,102940.0,102930.0,0.52091668]
[1763033264114,0.75513079,102940.0,102930.0,0.52091668]
[1763033264514,0.75513079,102940.0,102930.0,0.07977694]
[1763033271528,0.75510579,102940.0,102930.0,0.07977694]
[1763033273380,0.74601383,102940.0,102930.0,0.07977694]
[1763033273602,0.75509289,102940.0,102930.0,0.07977694]
[1763033274014,0.7030129,102940.0,102930.0,0.07977694]
[1763033274228,0.7450929,102940.0,102930.0,0.07977694]
[1763033274449,0.7030129,102940.0,102930.0,0.07977694]
[1763033274669,0.7450929,102940.0,102930.0,0.07977694]
[1763033277426,0.64959417,102940.0,102930.0,0.07977694]
[1763033277633,0.73509291,102940.0,102930.0,0.07977694]
[1763033279426,0.73509957,102940.0,102930.0,0.07977694]
[1763033279835,0.69301957,102940.0,102930.0,0.07977694]
[1763033280073,0.73509957,102940.0,102930.0,0.07977694]
[1763033280728,0.69301957,102940.0,102930.0,0.07977694]
[1763033280939,0.73509957,102940.0,102930.0,0.07977694]
[1763033281150,0.69301957,102940.0,102930.0,0.07977694]
[1763033281367,0.37001957,102940.0,102930.0,0.07977694]
[1763033281557,0.38209926,102940.0,102930.0,0.07977694]
[1763033281805,0.70509926,102940.0,102930.0,0.07977694]
[1763033282011,0.70509926,102940.0,102930.0,0.09977694]
[1763033282407,0.66301926,102940.0,102930.0,0.07977694]
[1763033282641,0.70509926,102940.0,102930.0,0.07977694]
[1763033282864,0.70509926,102940.0,102930.0,0.09977694]
[1763033283499,0.70508259,102940.0,102930.0,0.09977694]
[1763033283706,0.70508259,102940.0,102930.0,0.07977694]
[1763033284115,0.70508259,102940.0,102930.0,0.09977694]
[1763033284501,0.70508259,102940.0,102930.0,0.07977694]
[1763033284699,0.70508259,102940.0,102930.0,0.09977694]
[1763033285108,0.70508259,102940.0,102930.0,0.07977694]
[1763033285336,0.70508259,102940.0,102930.0,0.09977694]
[1763033286650,0.70508259,102940.0,102930.0,0.07977694]
[1763033286856,0.70508259,102940.0,102930.0,0.09977694]
[1763033286996,0.70508259,102940.0,102930.0,0.07977694]
[1763033287199,0.70508259,102940.0,102930.0,0.09977694]
[1763033288297,0.68691382,102940.0,102930.0,0.09977694]
[1763033288720,0.68691382,102940.0,102930.0,0.07977694]
[1763033288939,0.68691382,102940.0,102930.0,0.09977694]
[1763033289145,0.68691382,102940.0,102930.0,0.07977694]
[1763033289361,0.68691382,102940.0,102930.0,0.09977694]
[1763033289766,0.68691382,102940.0,102930.0,0.07977694]
[1763033290072,0.68691382,102940.0,102930.0,0.09977694]
[1763033290384,0.60141508,102940.0,102930.0,0.07977694]
[1763033290812,0.60141508,102940.0,102930.0,0.09977694]
[1763033291907,0.60141508,102940.0,102930.0,0.07977694]
[1763033292549,0.60141508,102940.0,102930.0,0.09977694]
[1763033294882,0.60141508,102940.0,102930.0,0.07977694]
[1763033295190,0.60141508,102940.0,102930.0,0.09977694]
[1763033295460,0.60141508,102940.0,102930.0,0.07977694]
[1763033295774,0.60141508,102940.0,102930.0,0.09977694]
[1763033295976,0.60141508,102940.0,102930.0,0.07977694]
[1763033296427,0.60141508,102940.0,102930.0,0.09977694]
[1763033296571,0.60141508,102940.0,102930.0,0.07977694]
[1763033296999,0.64483382,102940.0,102930.0,0.07977694]
[1763033303332,0.66297882,102940.0,102930.0,0.07977694]
[1763033308386,0.66297882,102940.0,102930.0,0.09977694]
[1763033309596,0.66297882,102940.0,102930.0,0.07977694]
[1763033309799,0.70505882,102940.0,102930.0,0.07977694]
[1763033310675,0.70505882,102940.0,102930.0,0.09977694]
[1763033311385,0.70505882,102940.0,102930.0,0.07977694]
[1763033311932,0.70505882,102940.0,102930.0,0.09977694]
[1763033312135,0.70505882,102940.0,102930.0,0.07977694]
[1763033312345,0.70505882,102940.0,102930.0,0.09977694]
[1763033313685,0.66297882,102940.0,102930.0,0.07977694]
[1763033313895,0.66164008,102940.0,102930.0,0.09977694]
[1763033314313,0.64349508,102940.0,102930.0,0.09977694]
[1763033314814,0.60141508,102940.0,102930.0,0.09977694]
[1763033316086,0.60141508,102940.0,102930.0,0.29408375]
[1763033316291,0.40712715,102940.0,102930.0,0.31590375]
[1763033317025,0.40712715,102940.0,102930.0,0.29590375]
[1763033317230,0.60141508,102940.0,102930.0,0.10159694]
[1763033317429,0.60141508,102940.0,102930.0,0.12159694]
[1763033318094,0.60141508,102940.0,102930.0,0.16367694]
[1763033318834,0.60141508,102940.0,102930.0,0.35798375]
[1763033318967,0.60141508,102940.0,102930.0,0.16367694]
[1763033319375,0.60141508,102940.0,102930.0,0.12159694]
[1763033319587,0.60141508,102940.0,102930.0,0.09977694]
[1763033320026,0.60141508,102940.0,102930.0,0.07977694]
[1763033320191,0.60141508,102940.0,102930.0,0.09977694]
[1763033321168,0.60141508,102940.0,102930.0,0.07977694]
[1763033321510,0.60141508,102940.0,102930.0,0.09977694]
[1763033323220,0.60141508,102940.0,102930.0,0.07977694]
[1763033323651,0.60141508,102940.0,102930.0,0.09977694]
[1763033323985,0.61959341,102940.0,102930.0,0.07977694]
[1763033324568,0.61959341,102940.0,102930.0,0.09977694]
[1763033324795,0.61959341,102940.0,102930.0,0.07977694]
[1763033325042,0.61959341,102940.0,102930.0,0.09977694]
[1763033325758,0.61959341,102940.0,102930.0,0.07977694]
[1763033332892,0.66301215,102940.0,102930.0,0.07977694]
[1763033335784,0.67210009,102940.0,102930.0,0.07977694]
[1763033336021,0.69303811,102940.0,102930.0,0.07977694]
[1763033337206,0.73511811,102940.0,102930.0,0.07977694]
[1763033338005,0.62868135,102940.0,102930.0,0.09977694]
[1763033338224,0.66167341,102940.0,102930.0,0.07977694]
[1763033339000,0.66167341,102940.0,102930.0,0.09977694]
[1763033339202,0.66167341,102940.0,102930.0,0.07977694]
[1763033339670,0.61959341,102940.0,102930.0,0.07977694]
[1763033340108,0.66167341,102940.0,102930.0,0.07977694]
[1763033340327,0.66167341,102940.0,102930.0,0.09977694]
[1763033340553,0.64349508,102940.0,102930.0,0.09977694]
[1763033340991,0.60141508,102940.0,102930.0,0.09977694]
[1763033341194,0.64349508,102940.0,102930.0,0.09977694]
[1763033341400,0.60141508,102940.0,102930.0,0.27408375]
[1763033341606,0.60141508,102940.0,102930.0,0.29408375]
[1763033341808,0.60141508,102940.0,102930.0,0.09977694]
[1763033342432,0.40712715,102940.0,102930.0,0.29408375]
[1763033342634,0.36638715,102940.0,102930.0,0.42542375]
[1763033343474,0.36638715,102940.0,102930.0,0.38572375]
[1763033344255,0.60307508,102940.0,102930.0,0.38572375]
[1763033345801,0.40878715,102940.0,102930.0,0.38572375]
[1763033345979,0.36638715,102940.0,102930.0,0.42474375]
[1763033348402,0.36638715,102940.0,102930.0,0.38572375]
[1763033348937,0.62896508,102940.0,102930.0,0.17141694]
[1763033349237,0.62896508,102940.0,102930.0,0.16253694]
[1763033350432,0.62896508,102940.0,102930.0,0.14253694]
[1763033350629,0.62896508,102940.0,102930.0,0.16253694]
[1763033350809,0.62896508,102940.0,102930.0,0.14253694]
[1763033351237,0.62896508,102940.0,102930.0,0.16253694]
[1763033351415,0.62896508,102940.0,102930.0,0.14253694]
[1763033351638,0.62896508,102940.0,102930.0,0.12185694]
[1763033352243,0.87146508,102940.0,102930.0,0.31616375]
[1763033352472,0.87146508,102940.0,102930.0,0.14185694]
[1763033353102,0.87146508,102940.0,102930.0,0.33616375]
[1763033353261,0.87146508,102940.0,102930.0,0.14185694]
[1763033354064,0.87146508,102940.0,102930.0,0.33616375]
[1763033355097,0.87146508,102940.0,102930.0,0.35618375]
[1763033355299,0.87146508,102940.0,102930.0,0.16187694]
[1763033355506,0.76276588,102940.0,102930.0,0.42163375]
[1763033356127,0.76176588,102940.0,102930.0,0.42163375]
[1763033356335,0.56747795,102940.0,102930.0,0.42163375]
[1763033356935,0.56647795,102940.0,102930.0,0.42163375]
[1763033357117,0.24347795,102940.0,102930.0,0.42163375]
[1763033361944,0.24347795,102940.0,102930.0,0.40163375]
[1763033362347,0.24347795,102940.0,102930.0,0.42163375]
[1763033364414,0.24347795,102940.0,102930.0,0.09977694]
[1763033364415,0.80948588,102940.0,102930.0,0.09977694]
[1763033364735,0.84941588,102940.0,102930.0,0.12185694]
[1763033365282,0.87857693,102940.0,102930.0,0.14185694]
[1763033365591,0.87857693,102940.0,102930.0,0.12185694]
[1763033365996,0.87857693,102940.0,102930.0,0.14185694]
[1763033366199,0.87857693,102940.0,102930.0,0.12185694]
[1763033367210,0.87857693,102940.0,102930.0,0.14185694]
[1763033367591,0.87857693,102940.0,102930.0,0.12185694]
[1763033367791,0.87857693,102940.0,102930.0,0.09977694]
[1763033367992,0.87857693,102940.0,102930.0,0.12185694]
[1763033368180,0.87857693,102940.0,102930.0,0.14185694]
[1763033372761,0.87857693,102940.0,102930.0,0.31616375]
[1763033373119,0.292999,102940.0,102930.0,0.38162375]
[1763033373326,0.26383795,102940.0,102930.0,0.42188375]
[1763033374323,0.24347795,102940.0,102930.0,0.42188375]
[1763033375090,0.43776588,102940.0,102930.0,0.22757694]
[1763033375297,0.43776588,102940.0,102930.0,0.42188375]
[1763033375812,0.52231588,102940.0,102930.0,0.18731694]
[1763033376011,0.28978795,102940.0,102930.0,0.18731694]
[1763033376217,0.48407588,102940.0,102930.0,0.38162375]
[1763033377225,0.45809588,102940.0,102930.0,0.42188375]
[1763033378832,0.45809588,102940.0,102930.0,0.22757694]
[1763033379368,0.45809588,102940.0,102930.0,0.16731694]
[1763033379565,0.45809588,102940.0,102930.0,0.18731694]
[1763033380535,0.48725622,102940.0,102930.0,0.38162375]
[1763033381592,0.29296829,102940.0,102930.0,0.42188375]